bitfinex-derivatives/quotes_SOLF0:USTF0_20250505
["timestamp","ask_amount","ask_price","bid_price","bid_amount"]
[1746425963905,6.8044,146.96,146.93,6.8055]
[1746425964196,24.46,146.97,146.89,24.46]
[1746425964402,2.043,146.95,146.88,7.98577876]
[1746425965201,2.043,146.95,146.88,14.79337876]
[1746425965901,6.8065,146.91,146.88,14.79337876]
[1746425968002,6.8065,146.91,146.88,6.8076]
[1746425968203,6.8062,146.92,146.89,6.8074]
[1746425968402,2.043,146.95,146.86,29.5897691]
[1746425969204,6.8051,146.94,146.9,6.8067]
[1746425969505,2.043,146.95,146.9,6.8067]
[1746425969702,8.8478,146.95,146.91,6.8062]
[1746425969897,2.043,146.95,146.91,6.8062]
[1746425970600,6.8054,146.94,146.9,6.8068]
[1746425970800,2.043,146.95,146.86,29.5897691]
[1746425971203,6.8064,146.92,146.88,6.8076]
[1746425971405,6.8064,146.92,146.86,29.5897691]
[1746425972904,6.8064,146.92,146.88,6.8075]
[1746425973204,2.043,146.95,146.86,29.5897691]
[1746425973404,2.043,146.95,146.91,6.8064]
[1746425973707,8.8479,146.95,146.91,6.8064]
[1746425974004,2.043,146.95,146.9,6.8068]
[1746425974199,6.8054,146.94,146.9,6.8068]
[1746425974406,2.043,146.95,146.89,24.46]
[1746425974800,6.8063,146.92,146.89,24.46]
[1746425976905,6.8065,146.91,146.89,24.46]
[1746425977406,6.8065,146.91,146.88,6.8076]
[1746425981212,6.8065,146.91,146.87,6.8082]
[1746425986422,6.8065,146.91,146.88,6.8079]
[1746425987820,6.8064,146.92,146.88,6.8076]
[1746425988220,2.043,146.95,146.88,6.8076]
[1746425989220,6.8064,146.92,146.88,6.8076]
[1746425989409,2.043,146.95,146.88,6.8076]
[1746425990018,6.8068,146.91,146.88,6.8076]
[1746425990919,6.8062,146.92,146.89,6.8073]
[1746425991724,6.8065,146.91,146.88,6.8077]
[1746425992828,6.8065,146.91,146.89,6.8074]
[1746425993327,6.8065,146.91,146.86,29.5697691]
[1746425993628,6.8065,146.91,146.88,6.8077]
[1746425995125,6.807,146.9,146.88,6.8077]
[1746425996329,6.8067,146.91,146.88,6.8077]
[1746425998329,3.26986551,146.91,146.86,27.70986551]
[1746425998526,3.26986551,146.89,146.84,7.98577876]
[1746425999032,6.8092,146.86,146.84,7.98577876]
[1746426000427,24.44,146.9,146.83,6.81]
[1746426000428,6.8085,146.87,146.83,6.81]
[1746426000828,6.8085,146.87,146.84,6.8096]
[1746426001328,24.44,146.9,146.86,6.8088]
[1746426001728,24.44,146.9,146.82,13.0988751]
[1746426002023,6.8079,146.88,146.82,13.0988751]
[1746426002232,6.8079,146.88,146.85,6.8089]
[1746426002429,6.8076,146.89,146.82,5.11309634]
[1746426003628,24.44,146.9,146.82,5.11309634]
[1746426004434,6.8087,146.87,146.83,6.8099]
[1746426005236,6.8091,146.86,146.8,56.38311505]
[1746426005638,6.8091,146.86,146.82,6.8103]
[1746426007339,6.8091,146.86,146.83,6.8102]
[1746426009435,6.8091,146.86,146.82,6.8105]
[1746426009940,6.8091,146.86,146.8,24.44]
[1746426011240,6.8091,146.86,146.82,6.8102]
[1746426011539,24.44,146.9,146.8,24.44]
[1746426011842,6.8095,146.85,146.81,6.8107]
[1746426013142,6.8095,146.85,146.82,6.8104]
[1746426014643,6.8095,146.85,146.81,6.811]
[1746426014841,24.42,146.86,146.77,89.22810213]
[1746426015041,26.4052,146.85,146.77,89.22810213]
[1746426015740,6.8105,146.83,146.79,6.8118]
[1746426016044,26.4052,146.85,146.77,89.22810213]
[1746426016339,6.8102,146.84,146.8,6.8113]
[1746426016545,26.4052,146.85,146.77,87.24500213]
[1746426016840,31.51829634,146.85,146.77,82.13190579]
[1746426017443,31.51829634,146.85,146.77,24.42]
[1746426017944,6.8114,146.81,146.77,31.2326]
[1746426018443,6.8109,146.82,146.79,6.812]
[1746426018642,31.51829634,146.85,146.77,24.42]
[1746426019244,6.8111,146.82,146.78,6.8124]
[1746426019840,31.51829634,146.85,146.78,6.8124]
[1746426020048,6.8112,146.81,146.78,6.8124]
[1746426020346,6.8112,146.81,146.77,6.8128]
[1746426021148,6.8112,146.81,146.78,6.8124]
[1746426023451,6.8112,146.81,146.77,6.8128]
[1746426024950,6.8117,146.8,146.77,6.8128]
[1746426026051,6.8113,146.81,146.77,6.8128]
[1746426027755,6.8113,146.81,146.78,6.8125]
[1746426030552,6.8118,146.8,146.77,6.813]
[1746426031248,6.8121,146.79,146.74,29.53309634]
[1746426031451,6.8121,146.79,146.76,6.8133]
[1746426031847,6.8126,146.78,146.75,6.8138]
[1746426032447,6.8132,146.77,146.74,6.8142]
[1746426032657,2.015,146.8,146.71,24.42]
[1746426032845,5.11309634,146.79,146.71,24.42]
[1746426033050,5.11309634,146.79,146.71,31.2356]
[1746426033545,5.11309634,146.79,146.71,6.8156]
[1746426033746,6.8142,146.75,146.71,6.8156]
[1746426033951,24.42,146.76,146.7,14.80197876]
[1746426034155,29.53309634,146.76,146.7,7.98577876]
[1746426034454,29.53309634,146.76,146.7,14.80187876]
[1746426034656,29.53309634,146.76,146.7,6.8161]
[1746426035752,29.53309634,146.76,146.67,31.94311505]
[1746426035955,2.0956,146.75,146.67,31.94311505]
[1746426036358,6.816,146.71,146.67,38.76051505]
[1746426037159,6.816,146.71,146.67,6.8174]
[1746426037557,6.8165,146.7,146.67,6.8174]
[1746426037755,24.44,146.72,146.68,6.8171]
[1746426038860,24.44,146.72,146.67,6.8175]
[1746426039961,24.44,146.72,146.65,6.8183]
[1746426040561,6.817,146.69,146.65,6.8183]
[1746426040768,24.44,146.72,146.62,29.51309634]
[1746426042065,31.2557,146.72,146.68,6.8168]
[1746426042364,31.2557,146.72,146.62,29.51309634]
[1746426042560,24.44,146.72,146.69,6.8166]
[1746426043062,24.44,146.72,146.62,29.51309634]
[1746426043464,31.2557,146.72,146.68,6.817]
[1746426044064,31.2557,146.72,146.69,6.8167]
[1746426045061,24.44,146.72,146.69,6.8167]
[1746426046767,31.2554,146.72,146.68,6.817]
[1746426048168,31.2554,146.72,146.69,6.8166]
[1746426051163,24.42,146.76,146.67,5.11309634]
[1746426051372,24.42,146.76,146.67,7.09019634]
[1746426051663,2.1022,146.78,146.7,5.11309634]
[1746426051869,24.42,146.79,146.71,24.42]
[1746426052070,24.42,146.79,146.71,26.5082]
[1746426052570,563.9,146.82,146.73,5.11309634]
[1746426052763,563.9,146.82,146.74,2.1357]
[1746426052962,6.8117,146.8,146.76,6.8132]
[1746426053264,24.42,146.82,146.76,6.8132]
[1746426054168,6.8121,146.79,146.76,6.8132]
[1746426054973,24.42,146.82,146.75,24.42]
[1746426055269,24.42,146.82,146.72,26.5557]
[1746426056169,6.8133,146.77,146.74,6.8143]
[1746426057269,6.8127,146.78,146.74,6.8143]
[1746426057878,6.8127,146.78,146.75,6.8139]
[1746426058369,6.8122,146.79,146.75,6.8139]
[1746426058666,24.42,146.82,146.73,5.11309634]
[1746426059170,24.42,146.82,146.78,6.8123]
[1746426059568,31.231,146.82,146.78,6.8123]
[1746426059865,31.231,146.82,146.79,6.8121]
[1746426060071,6.8105,146.83,146.79,6.8121]
[1746426060473,2.0792,146.84,146.78,6.8123]
[1746426060666,6.811,146.82,146.78,6.8123]
[1746426061271,6.811,146.82,146.79,6.812]
[1746426061472,6.8103,146.83,146.79,6.812]
[1746426061673,2.0792,146.84,146.79,6.812]
[1746426061873,6.811,146.82,146.78,6.8123]
[1746426062372,6.811,146.82,146.78,6.8122]
[1746426062562,6.8112,146.81,146.78,6.8122]
[1746426063173,6.8108,146.82,146.79,6.8121]
[1746426063470,6.8108,146.82,146.76,24.4]
[1746426063772,2.0792,146.84,146.76,24.4]
[1746426063970,6.8109,146.82,146.78,6.8123]
[1746426069276,6.8113,146.81,146.78,6.8123]
[1746426071977,6.812,146.8,146.76,31.2132]
[1746426073076,6.812,146.8,146.77,6.8128]
[1746426073276,6.8113,146.81,146.77,6.8128]
[1746426074076,6.8113,146.81,146.78,6.8124]
[1746426079188,6.8109,146.82,146.79,6.812]
[1746426079590,6.8104,146.83,146.8,6.8115]
[1746426079790,6.8104,146.83,146.76,24.4]
[1746426081891,8.8891,146.84,146.81,6.8111]
[1746426082991,8.8891,146.84,146.8,6.8114]
[1746426083687,6.8102,146.83,146.8,6.8114]
[1746426089990,6.8099,146.84,146.81,6.8111]
[1746426090190,6.8099,146.84,146.76,24.4]
[1746426090191,4.0605,146.85,146.76,29.51309634]
[1746426090392,4.0605,146.85,146.77,2.1256]
[1746426091093,4.0605,146.85,146.81,6.8111]
[1746426091691,10.8701,146.85,146.81,6.8111]
[1746426092394,6.81,146.84,146.81,6.8111]
[1746426095396,4.0605,146.85,146.77,2.1256]
[1746426095601,4.0605,146.85,146.76,32.38577876]
[1746426095900,4.0605,146.85,146.77,7.98577876]
[1746426096692,6.8119,146.8,146.77,7.98577876]
[1746426097399,6.8113,146.81,146.77,7.98577876]
[1746426097797,6.8113,146.81,146.77,6.8127]
[1746426101096,6.8113,146.81,146.78,6.8125]
[1746426103099,24.36,146.83,146.79,6.8118]
[1746426103302,24.36,146.83,146.76,24.4]
[1746426104198,31.1705,146.83,146.8,6.8116]
[1746426104603,24.36,146.83,146.8,6.8116]
[1746426105903,31.1702,146.83,146.8,6.8116]
[1746426110310,24.36,146.83,146.81,6.8111]
[1746426110503,4.0605,146.85,146.76,56.34311505]
[1746426110703,4.0605,146.85,146.77,2.119]
[1746426110907,10.8701,146.85,146.77,2.119]
[1746426111111,8.9118,146.85,146.77,2.119]
[1746426112209,6.8098,146.84,146.77,2.119]
[1746426112610,6.8098,146.84,146.79,6.812]
[1746426112811,6.8098,146.84,146.77,10.10477876]
[1746426113612,2.1022,146.85,146.77,10.10477876]
[1746426113907,5.11309634,146.83,146.77,7.98577876]
[1746426114102,24.34,146.82,146.77,7.98577876]
[1746426114307,26.3699,146.82,146.77,7.98577876]
[1746426114709,6.8129,146.78,146.75,14.79937876]
[1746426115514,6.813,146.77,146.75,7.98577876]
[1746426115812,28.3317,146.82,146.75,7.98577876]
[1746426116112,6.8127,146.78,146.75,7.98577876]
[1746426116411,6.8127,146.78,146.75,14.79957876]
[1746426116614,6.8127,146.78,146.75,6.8138]
[1746426117713,6.8127,146.78,146.74,6.8142]
[1746426118911,6.813,146.77,146.74,6.8142]
[1746426121316,6.8127,146.78,146.74,6.8142]
[1746426122716,6.8131,146.77,146.74,6.8142]
[1746426122916,28.3317,146.82,146.73,31.1546]
[1746426123217,6.8144,146.75,146.71,7.98577876]
[1746426123918,6.8144,146.75,146.71,14.80127876]
[1746426124117,6.8144,146.75,146.71,6.8155]
[1746426127017,24.34,146.78,146.7,29.45309634]
[1746426127217,1.9453,146.79,146.7,29.45309634]
[1746426127516,6.8122,146.79,146.76,6.8131]
[1746426128222,6.8118,146.8,146.76,6.8131]
[1746426128414,6.8118,146.8,146.77,6.8129]
[1746426128611,31.1514,146.81,146.77,6.8129]
[1746426128907,24.34,146.81,146.77,6.8129]
[1746426129523,6.8119,146.8,146.76,6.8132]
[1746426130019,6.8119,146.8,146.77,6.8129]
[1746426132120,31.1513,146.81,146.78,6.8125]
[1746426132315,24.34,146.81,146.74,24.34]
[1746426133217,6.8117,146.8,146.77,6.8127]
[1746426133925,31.1513,146.81,146.78,6.8125]
[1746426134319,24.34,146.81,146.74,24.34]
[1746426134923,31.1513,146.81,146.74,24.34]
[1746426135219,4.069,146.84,146.74,24.34]
[1746426135521,8.7448,146.84,146.76,5.11309634]
[1746426135718,6.8099,146.84,146.77,2.0779]
[1746426135919,6.8099,146.84,146.78,24.32]
[1746426136221,31.1294,146.85,146.78,24.32]
[1746426136924,6.8098,146.84,146.81,6.8108]
[1746426137221,6.8098,146.84,146.78,24.32]
[1746426137425,24.32,146.85,146.78,24.32]
[1746426137823,6.8107,146.82,146.79,6.812]
[1746426138123,6.8107,146.82,146.78,24.32]
[1746426139222,6.8107,146.82,146.78,31.1324]
[1746426140125,6.8112,146.81,146.78,31.1324]
[1746426142523,24.32,146.85,146.75,24.3]
[1746426143425,24.32,146.85,146.76,6.8133]
[1746426143927,6.8119,146.8,146.76,6.8133]
[1746426149529,6.8119,146.8,146.77,6.8129]
[1746426149729,6.8113,146.81,146.75,24.3]
[1746426149923,24.32,146.85,146.75,24.3]
[1746426150229,6.8109,146.82,146.78,6.8125]
[1746426156132,6.8111,146.81,146.78,6.8125]
[1746426169349,29.39309634,146.8,146.74,31.94311505]
[1746426169548,31.37329118,146.8,146.74,31.94311505]
[1746426169852,6.813,146.77,146.74,31.94311505]
[1746426170350,31.37329118,146.8,146.74,31.94311505]
[1746426171353,6.8125,146.78,146.74,38.75731505]
[1746426171852,6.8125,146.78,146.74,6.8142]
[1746426175555,6.8132,146.77,146.74,6.8142]
[1746426175751,31.37329118,146.8,146.73,31.0947]
[1746426176153,6.8133,146.77,146.73,31.0947]
[1746426178556,6.8135,146.76,146.73,31.0947]
[1746426180858,6.8135,146.76,146.73,24.28]
[1746426181861,3.27705416,146.76,146.73,24.28]
[1746426182159,6.814,146.75,146.73,24.28]
[1746426183860,10.09155416,146.74,146.71,6.8156]
[1746426184060,3.27705416,146.74,146.7,24.28]
[1746426184260,3.27705416,146.72,146.68,7.98577876]
[1746426184465,6.8161,146.71,146.68,14.80267876]
[1746426184761,3.27705416,146.72,146.68,7.98577876]
[1746426185562,6.8159,146.71,146.68,7.98577876]
[1746426185761,6.8159,146.71,146.67,30.77493629]
[1746426185762,6.8159,146.71,146.67,14.80337876]
[1746426185963,9.21989879,146.74,146.68,6.8171]
[1746426186159,9.21989879,146.74,146.67,7.98577876]
[1746426186556,6.8161,146.71,146.67,14.80327876]
[1746426186764,2.0152,146.7,146.67,14.80327876]
[1746426186959,2.0152,146.7,146.67,7.98577876]
[1746426188164,2.0152,146.7,146.68,6.8172]
[1746426203872,6.8159,146.71,146.68,6.8172]
[1746426205870,3.27988551,146.7,146.68,6.8172]
[1746426208374,10.09618551,146.7,146.67,6.8175]
[1746426213473,3.27988551,146.7,146.67,6.8175]
[1746426216673,3.27988551,146.7,146.68,6.8172]
[1746426218077,3.27988551,146.7,146.67,6.8174]
[1746426222878,3.27988551,146.7,146.68,6.8171]
[1746426226876,31.0955,146.72,146.68,6.8171]
[1746426227180,3.27988551,146.71,146.68,6.8171]
[1746426227581,10.09568551,146.71,146.68,6.8171]
[1746426229380,10.09568551,146.71,146.67,6.8174]
[1746426229581,6.8163,146.7,146.67,6.8174]
[1746426230081,10.09588551,146.71,146.67,6.8174]
[1746426230375,3.27988551,146.69,146.67,6.8174]
[1746426231781,3.27988551,146.69,146.68,6.8172]
[1746426232881,3.27988551,146.69,146.67,6.8175]
[1746426234778,3.27988551,146.69,146.68,6.8172]
[1746426244985,1.9846,146.73,146.71,6.8158]
[1746426245194,5.26448551,146.73,146.71,6.8158]
[1746426245690,3.27988551,146.73,146.66,3.27988551]
[1746426245882,27.51988551,146.75,146.68,3.27988551]
[1746426246087,27.51988551,146.75,146.69,24.24]
[1746426246290,3.27988551,146.75,146.69,24.24]
[1746426247192,3.27988551,146.75,146.73,6.8145]
[1746426251495,8.868,146.77,146.73,6.8145]
[1746426251691,3.27988551,146.76,146.73,6.8145]
[1746426252189,3.27988551,146.76,146.7,3.27988551]
[1746426252390,3.27988551,146.77,146.72,3.27988551]
[1746426253394,3.27988551,146.77,146.75,6.8135]
[1746426253692,3.27988551,146.78,146.72,3.27988551]
[1746426254295,3.27988551,146.78,146.75,6.8137]
[1746426259296,3.27988551,146.78,146.76,6.8134]
[1746426259492,29.53078551,146.8,146.73,24.2]
[1746426259695,27.51988551,146.8,146.73,24.2]
[1746426261196,34.33148551,146.8,146.77,6.813]
[1746426261798,6.8121,146.79,146.75,6.8139]
[1746426262194,6.8121,146.79,146.73,24.2]
[1746426263200,6.8121,146.79,146.76,6.8134]
[1746426263408,34.33168551,146.8,146.76,6.8134]
[1746426266405,34.33168551,146.8,146.77,6.8129]
[1746426266614,3.27988551,146.8,146.74,3.27988551]
[1746426266906,3.27988551,146.8,146.74,5.28208551]
[1746426267602,3.27988551,146.8,146.78,6.8121]
[1746426268306,3.27988551,146.8,146.76,6.8131]
[1746426269008,3.27988551,146.8,146.74,5.28208551]
[1746426269910,10.09168551,146.8,146.76,6.8132]
[1746426270910,3.27988551,146.8,146.74,2.0022]
[1746426271104,3.27988551,146.78,146.73,24.2]
[1746426272209,6.8131,146.77,146.74,6.8141]
[1746426272709,6.8139,146.76,146.73,24.2]
[1746426272902,3.27988551,146.78,146.73,24.2]
[1746426273107,3.27988551,146.76,146.73,24.2]
[1746426273407,10.09358551,146.76,146.73,24.2]
[1746426274111,10.09358551,146.76,146.73,31.0147]
[1746426275314,3.27988551,146.78,146.74,6.8143]
[1746426275518,3.27988551,146.78,146.73,24.2]
[1746426276810,10.09268551,146.78,146.75,6.8138]
[1746426277011,3.27988551,146.78,146.73,24.2]
[1746426278215,6.813,146.77,146.74,6.8142]
[1746426295340,6.813,146.77,146.75,6.8139]
[1746426295539,10.09258551,146.78,146.75,6.8139]
[1746426295740,3.27988551,146.78,146.75,6.8139]
[1746426296244,6.813,146.77,146.74,6.8142]
[1746426298244,3.27988551,146.76,146.7,59.38300056]
[1746426298542,5.22588551,146.76,146.7,56.10311505]
[1746426298944,5.22588551,146.76,146.7,24.16]
[1746426299443,6.8146,146.74,146.71,6.8155]
[1746426300443,6.8141,146.75,146.71,6.8155]
[1746426302047,6.8144,146.74,146.71,6.8155]
[1746426304842,6.8156,146.72,146.7,24.16]
[1746426305051,3.27988551,146.72,146.69,7.98577876]
[1746426305750,6.8158,146.71,146.69,7.98577876]
[1746426308047,6.8158,146.71,146.68,6.8171]
[1746426308452,6.8158,146.71,146.67,30.9774]
[1746426308754,6.8158,146.71,146.67,24.16]
[1746426309955,6.8158,146.71,146.68,6.8172]
[1746426310154,6.8163,146.7,146.67,24.16]
[1746426311254,6.8163,146.7,146.67,30.9774]
[1746426313965,6.816,146.71,146.67,30.9774]
[1746426314157,3.27988551,146.72,146.67,30.9774]
[1746426314959,6.8163,146.7,146.67,30.9774]
[1746426315653,3.27988551,146.72,146.64,66.07366272]
[1746426315860,3.27988551,146.7,146.64,66.07366272]
[1746426316358,6.817,146.69,146.65,6.8182]
[1746426317259,6.8172,146.68,146.65,6.8182]
[1746426320765,3.27988551,146.7,146.64,72.89256272]
[1746426321265,6.8175,146.68,146.64,72.89256272]
[1746426321763,10.09738551,146.68,146.64,72.89256272]
[1746426322265,10.09738551,146.68,146.65,6.8186]
[1746426324968,6.8177,146.67,146.64,72.89256272]
[1746426326567,10.09718551,146.68,146.65,6.8184]
[1746426327367,6.8176,146.67,146.65,6.8184]
[1746426329869,6.8176,146.67,146.64,72.89246272]
[1746426338582,1.18674124,146.78,146.64,433.89366272]
[1746426338784,3.27536632,146.84,146.77,3.27536632]
[1746426338978,3.27536632,146.8,146.76,24.16]
[1746426339178,3.27536632,146.82,146.77,3.27536632]
[1746426339379,29.44556632,146.84,146.77,3.27536632]
[1746426339579,27.43536632,146.84,146.77,3.27536632]
[1746426339781,24.16,146.84,146.79,6.8118]
[1746426340079,24.16,146.84,146.77,2.1253]
[1746426340681,24.16,146.84,146.79,6.812]
[1746426341080,24.16,146.84,146.77,2.1253]
[1746426341378,24.16,146.84,146.81,6.811]
[1746426343884,24.16,146.84,146.82,6.8106]
[1746426344576,2.0565,146.85,146.77,2.1253]
[1746426344877,2.0565,146.85,146.78,5.11537515]
[1746426345080,26.1824,146.87,146.78,5.11537515]
[1746426345475,24.14,146.87,146.78,5.11537515]
[1746426346076,24.14,146.87,146.84,6.8094]
[1746426346785,24.14,146.87,146.83,6.8101]
[1746426349686,30.9484,146.87,146.83,6.8101]
[1746426351487,6.8089,146.86,146.82,6.8106]
[1746426358297,24.14,146.87,146.81,29.25537515]
[1746426358492,1.994,146.89,146.81,29.25537515]
[1746426358694,1.994,146.89,146.84,5.11537515]
[1746426358897,24.24,146.9,146.87,6.8079]
[1746426359095,6.8068,146.91,146.87,6.8079]
[1746426363196,6.8068,146.91,146.88,6.8079]
[1746426364898,6.8068,146.91,146.87,6.8081]
[1746426366197,1.9699,146.92,146.87,6.8081]
[1746426366391,1.9699,146.92,146.86,6.8087]
[1746426367102,6.8073,146.9,146.86,6.8087]
[1746426367700,6.8073,146.9,146.87,6.8083]
[1746426370303,6.8066,146.91,146.88,6.8079]
[1746426372304,6.8066,146.91,146.87,6.8081]
[1746426372507,6.8071,146.9,146.87,6.8081]
[1746426375006,6.8071,146.9,146.88,6.8079]
[1746426376508,6.8067,146.91,146.88,6.8079]
[1746426379415,6.807,146.9,146.87,60.48895291]
[1746426381318,6.807,146.9,146.88,5.4513275]
[1746426382118,24.24,146.93,146.88,5.4513275]
[1746426382316,1.938,146.94,146.88,5.4513275]
[1746426382820,8.7434,146.94,146.88,5.4513275]
[1746426384221,8.7434,146.94,146.91,6.8064]
[1746426389324,6.8056,146.93,146.9,6.8068]
[1746426389524,6.8056,146.93,146.89,7.98577876]
[1746426390226,6.8056,146.93,146.9,6.8069]
[1746426390925,1.938,146.94,146.88,13.42738304]
[1746426390926,8.7433,146.94,146.88,13.42738304]
[1746426391425,8.7433,146.94,146.91,6.8062]
[1746426395534,1.18472118,147.02,146.93,5.11537515]
[1746426395726,4.2482,147.06,146.94,24.1]
[1746426396333,5.11537515,147.04,146.92,24.1]
[1746426396635,6.8031,146.99,146.94,6.8051]
[1746426397233,6.8033,146.98,146.94,6.8051]
[1746426398234,6.8037,146.97,146.93,6.8054]
[1746426398734,26.2351,147.03,146.93,6.8054]
[1746426399334,6.8043,146.96,146.93,6.8054]
[1746426401038,26.2351,147.03,146.92,30.9059]
[1746426401039,6.805,146.95,146.92,30.9059]
[1746426410345,6.8044,146.96,146.93,6.8055]
[1746426411151,2.0247,146.98,146.92,24.1]
[1746426411347,24.1,146.99,146.92,29.21537515]
[1746426411848,30.9031,146.99,146.95,6.8043]
[1746426413446,6.8033,146.98,146.95,6.8043]
[1746426413647,24.1,146.99,146.92,24.1]
[1746426414147,6.8046,146.96,146.92,24.1]
[1746426414349,6.8046,146.96,146.93,6.8055]
[1746426417552,6.8047,146.95,146.93,6.8055]
[1746426418151,6.8044,146.96,146.93,6.8055]
[1746426419652,6.8048,146.95,146.92,30.9057]
[1746426420057,6.8048,146.95,146.92,6.8057]
[1746426421755,6.8043,146.96,146.92,6.8057]
[1746426422055,6.8043,146.96,146.93,6.8055]
[1746426429459,2.0382,146.97,146.91,6.8063]
[1746426430166,6.8049,146.95,146.92,6.806]
[1746426440773,6.8054,146.94,146.91,6.8063]
[1746426440978,26.2382,146.97,146.89,24.2]
[1746426441374,6.8068,146.91,146.88,6.8077]
[1746426443078,6.8071,146.9,146.87,38.75131505]
[1746426444377,6.8075,146.89,146.87,31.94311505]
[1746426444983,6.8075,146.89,146.86,6.8086]
[1746426445175,6.8075,146.89,146.85,7.98577876]
[1746426445176,1.9618,146.92,146.85,14.79487876]
[1746426445370,1.9618,146.92,146.85,7.98577876]
[1746426446081,6.8077,146.89,146.86,6.8088]
[1746426449378,1.9618,146.92,146.85,6.809]
[1746426451172,6.8079,146.88,146.85,6.809]
[1746426451988,6.8076,146.89,146.86,6.8088]
[1746426452586,6.808,146.88,146.85,6.8091]
[1746426452884,1.9618,146.92,146.83,29.21537515]
[1746426453184,7.07717515,146.92,146.83,24.1]
[1746426453887,7.07717515,146.92,146.81,2.0838]
[1746426454186,6.8095,146.85,146.82,6.8106]
[1746426455179,6.8089,146.86,146.82,6.8106]
[1746426456283,6.8093,146.85,146.82,6.8106]
[1746426458399,6.809,146.86,146.83,6.81]
[1746426460991,6.8093,146.85,146.82,6.8105]
[1746426465892,6.8099,146.84,146.81,6.811]
[1746426468599,6.8089,146.86,146.83,6.8099]
[1746426468898,26.198,146.92,146.8,29.21537515]
[1746426469096,26.198,146.92,146.81,2.0146]
[1746426469293,6.8075,146.89,146.82,6.76684919]
[1746426469488,6.8075,146.89,146.83,6.76684919]
[1746426469689,6.8075,146.89,146.81,2.0146]
[1746426469887,26.198,146.92,146.81,2.0146]
[1746426469888,6.8071,146.9,146.85,6.8089]
[1746426470298,26.198,146.92,146.85,6.8089]
[1746426470496,6.807,146.9,146.85,6.8089]
[1746426470797,26.198,146.92,146.85,6.8089]
[1746426471394,26.198,146.92,146.86,6.8088]
[1746426472198,6.807,146.9,146.86,6.8088]
[1746426475099,6.8075,146.89,146.86,6.8088]
[1746426475398,26.198,146.92,146.84,24.12]
[1746426475900,6.8082,146.88,146.84,30.9295]
[1746426476702,5.11537515,146.9,146.81,26.2546]
[1746426476904,5.11537515,146.9,146.81,24.24]
[1746426477301,6.8093,146.85,146.81,31.051]
[1746426477801,6.8098,146.84,146.81,31.051]
[1746426480104,6.8093,146.85,146.82,6.8106]
[1746426483906,6.8093,146.85,146.81,31.0509]
[1746426486901,6.8098,146.84,146.81,31.0509]
[1746426488005,6.8102,146.83,146.81,24.24]
[1746426488307,5.11537515,146.87,146.78,58.32571505]
[1746426488603,7.08347515,146.87,146.78,58.32571505]
[1746426489005,7.08347515,146.87,146.79,6.812]
[1746426489605,6.8105,146.83,146.79,6.812]
[1746426490308,6.8105,146.83,146.8,6.8115]
[1746426494309,6.8109,146.82,146.79,6.8119]
[1746426494511,7.08347515,146.87,146.78,24.26]
[1746426495912,7.08347515,146.87,146.78,31.0723]
[1746426497012,6.811,146.82,146.79,6.812]
[1746426497308,24.26,146.84,146.79,6.812]
[1746426497509,6.8105,146.83,146.8,6.8115]
[1746426498613,6.8105,146.83,146.79,6.8118]
[1746426498812,6.8107,146.82,146.79,6.8118]
[1746426499414,6.8107,146.82,146.78,31.0723]
[1746426500214,6.8107,146.82,146.79,6.812]
[1746426500515,6.8112,146.81,146.78,24.26]
[1746426500813,6.8112,146.81,146.78,31.0724]
[1746426502109,6.8112,146.81,146.78,6.8124]
[1746426502814,6.8119,146.8,146.77,6.8127]